[Event "Early-Titled-Tuesday-Blitz-January-30-2024"]
[Site "Chess.com"]
[Date "2024.01.30"]
[Round "4"]
[White "PedroGil25"]
[Black "YurasovMat-2012"]
[Result "0-1"]
[WhiteElo "2402"]
[BlackElo "2616"]
[TimeControl "180+1"]
[EndTime "8:41:39 PST"]
[Termination "YurasovMat-2012 won by resignation"]

1. e4 {[%clk 0:03:00.9]} 1... e5 {[%clk 0:02:59.5]} 2. Nf3 {[%clk 0:03:00.2]}
2... Nf6 {[%clk 0:02:59.9]} 3. Nc3 {[%clk 0:02:58.7]} 3... Bb4 {[%clk 0:02:59]}
4. Nxe5 {[%clk 0:02:58.4]} 4... O-O {[%clk 0:02:57.1]} 5. Be2 {[%clk 0:02:58.2]}
5... Re8 {[%clk 0:02:56.5]} 6. Nf3 {[%clk 0:02:57.9]} 6... Nxe4 {[%clk
0:02:55.3]} 7. Nxe4 {[%clk 0:02:58.2]} 7... Rxe4 {[%clk 0:02:56.2]} 8. O-O
{[%clk 0:02:58.7]} 8... d5 {[%clk 0:02:56.8]} 9. d4 {[%clk 0:02:58.5]} 9... Re8
{[%clk 0:02:56.2]} 10. Bd3 {[%clk 0:02:57.4]} 10... h6 {[%clk 0:02:56.1]} 11. h3
{[%clk 0:02:56.7]} 11... Nd7 {[%clk 0:02:55]} 12. Bf4 {[%clk 0:02:56.4]} 12...
c5 {[%clk 0:02:54.5]} 13. c3 {[%clk 0:02:56]} 13... Ba5 {[%clk 0:02:53.8]} 14.
dxc5 {[%clk 0:02:55.6]} 14... Nxc5 {[%clk 0:02:51.6]} 15. Bc2 {[%clk 0:02:55.2]}
15... Ne6 {[%clk 0:02:49.5]} 16. Bg3 {[%clk 0:02:52.1]} 16... Bc7 {[%clk
0:02:46]} 17. Bxc7 {[%clk 0:02:50.1]} 17... Qxc7 {[%clk 0:02:39.9]} 18. Re1
{[%clk 0:02:50.6]} 18... Rd8 {[%clk 0:02:35.3]} 19. Qd3 {[%clk 0:02:48.8]} 19...
g6 {[%clk 0:02:31.4]} 20. Ne5 {[%clk 0:02:49.3]} 20... d4 {[%clk 0:02:28.7]} 21.
Nxg6 {[%clk 0:02:22.6]} 21... fxg6 {[%clk 0:02:13.3]} 22. Qxg6+ {[%clk
0:02:23.5]} 22... Qg7 {[%clk 0:02:06.9]} 23. Rxe6 {[%clk 0:02:22.3]} 23... Bxe6
{[%clk 0:02:06.4]} 24. Qxe6+ {[%clk 0:02:23.2]} 24... Kh8 {[%clk 0:02:06.8]} 25.
cxd4 {[%clk 0:02:21.2]} 25... Rxd4 {[%clk 0:02:06.4]} 26. Re1 {[%clk 0:02:20.8]}
26... Rf8 {[%clk 0:02:05.5]} 27. Re2 {[%clk 0:02:05.6]} 27... Rdf4 {[%clk
0:01:58.4]} 28. g3 {[%clk 0:01:50.3]} 28... Rb4 {[%clk 0:01:44.2]} 29. b3 {[%clk
0:01:49]} 29... Rb6 {[%clk 0:01:43.5]} 30. Qe4 {[%clk 0:01:47.9]} 30... Rbf6
{[%clk 0:01:36.9]} 31. h4 {[%clk 0:01:46.7]} 31... Qc7 {[%clk 0:01:30.9]} 32.
Bd3 {[%clk 0:01:32.3]} 32... Rg8 {[%clk 0:01:22]} 33. Bc4 {[%clk 0:01:25.8]}
33... Rgf8 {[%clk 0:01:10.8]} 34. a4 {[%clk 0:01:23.6]} 34... Qb6 {[%clk
0:01:02]} 35. Bd3 {[%clk 0:01:20]} 35... R8f7 {[%clk 0:01:02.2]} 36. a5 {[%clk
0:00:49.7]} 36... Qxa5 {[%clk 0:00:52.1]} 37. Bc4 {[%clk 0:00:48.7]} 37... Rf8
{[%clk 0:00:40.1]} 38. Bd3 {[%clk 0:00:48.6]} 38... Qc7 {[%clk 0:00:36.8]} 39.
Rc2 {[%clk 0:00:47.2]} 39... Qg7 {[%clk 0:00:31.8]} 40. h5 {[%clk 0:00:46]}
40... Rf3 {[%clk 0:00:23.2]} 41. Re2 {[%clk 0:00:39.6]} 41... R3f6 {[%clk
0:00:13.4]} 42. Rc2 {[%clk 0:00:39.5]} 42... Qf7 {[%clk 0:00:10.9]} 43. f4
{[%clk 0:00:37.1]} 43... Re6 {[%clk 0:00:08.9]} 44. Qd4+ {[%clk 0:00:35.6]}
44... Qg7 {[%clk 0:00:06.5]} 45. Qxg7+ {[%clk 0:00:35.5]} 45... Kxg7 {[%clk
0:00:06.1]} 46. Bg6 {[%clk 0:00:36.4]} 46... Re7 {[%clk 0:00:05.2]} 47. g4
{[%clk 0:00:36]} 47... Rxf4 {[%clk 0:00:04.7]} 48. Rc8 {[%clk 0:00:35.9]} 48...
Rxg4+ {[%clk 0:00:04.5]} 49. Kf2 {[%clk 0:00:36.2]} 49... Rxg6 {[%clk
0:00:05.2]} 50. hxg6 {[%clk 0:00:37]} 50... Kxg6 {[%clk 0:00:06.1]} 51. Ra8
{[%clk 0:00:37]} 51... a6 {[%clk 0:00:05.1]} 52. Rg8+ {[%clk 0:00:37.9]} 52...
Kf5 {[%clk 0:00:04.2]} 53. Rb8 {[%clk 0:00:38.8]} 53... Ke4 {[%clk 0:00:03.5]}
54. Rf8 {[%clk 0:00:39.7]} 54... Kd4 {[%clk 0:00:03.7]} 55. Rh8 {[%clk
0:00:40.2]} 55... Kc3 {[%clk 0:00:03.8]} 56. Rxh6 {[%clk 0:00:40.5]} 56... Kxb3
{[%clk 0:00:04.4]} 57. Rb6+ {[%clk 0:00:41.3]} 57... Kc4 {[%clk 0:00:04.9]} 58.
Kf3 {[%clk 0:00:42.2]} 58... a5 {[%clk 0:00:05.2]} 59. Kf4 {[%clk 0:00:43.1]}
59... Kc5 {[%clk 0:00:05.3]} 60. Rb1 {[%clk 0:00:43.9]} 60... b5 {[%clk
0:00:05.8]} 61. Rc1+ {[%clk 0:00:44.8]} 61... Kb6 {[%clk 0:00:06.1]} 62. Rb1
{[%clk 0:00:45.7]} 62... a4 {[%clk 0:00:06.7]} 63. Rh1 {[%clk 0:00:46.4]} 63...
Ka5 {[%clk 0:00:07.2]} 64. Rh6 {[%clk 0:00:47.3]} 64... Rc7 {[%clk 0:00:06.7]}
65. Rh8 {[%clk 0:00:48.2]} 65... Kb4 {[%clk 0:00:06.9]} 66. Ra8 {[%clk
0:00:49.1]} 66... Kb3 {[%clk 0:00:07]} 67. Rh8 {[%clk 0:00:50]} 67... b4 {[%clk
0:00:07.6]} 68. Rh2 {[%clk 0:00:50.8]} 68... a3 {[%clk 0:00:07.2]} 69. Ke3
{[%clk 0:00:51.7]} 69... a2 {[%clk 0:00:07.3]} 70. Kd4 {[%clk 0:00:52.6]} 70...
a1=Q+ {[%clk 0:00:07]} 0-1

[Event "Early-Titled-Tuesday-Blitz-January-30-2024"]
[Site "Chess.com"]
[Date "2024.01.30"]
[Round "4"]
[White "Kunalm64"]
[Black "falzehope0"]
[Result "0-1"]
[WhiteElo "2554"]
[BlackElo "2387"]
[TimeControl "180+1"]
[EndTime "8:41:39 PST"]
[Termination "falzehope0 won by resignation"]

1. e4 {[%clk 0:03:00.9]} 1... d6 {[%clk 0:03:00.6]} 2. d4 {[%clk 0:02:52.9]}
2... Nf6 {[%clk 0:02:58.2]} 3. Nc3 {[%clk 0:02:52.8]} 3... Nbd7 {[%clk
0:02:54.9]} 4. Nf3 {[%clk 0:02:52.1]} 4... e5 {[%clk 0:02:47.2]} 5. Bc4 {[%clk
0:02:51.4]} 5... Be7 {[%clk 0:02:39.1]} 6. O-O {[%clk 0:02:48.4]} 6... O-O
{[%clk 0:02:32.5]} 7. Re1 {[%clk 0:02:47.4]} 7... c6 {[%clk 0:02:15.6]} 8. a4
{[%clk 0:02:46.8]} 8... Qc7 {[%clk 0:02:01.7]} 9. h3 {[%clk 0:02:44.4]} 9... h6
{[%clk 0:01:37.4]} 10. b3 {[%clk 0:02:42.7]} 10... Re8 {[%clk 0:01:29.7]} 11.
Bb2 {[%clk 0:02:38]} 11... Nf8 {[%clk 0:01:28.8]} 12. a5 {[%clk 0:01:33.8]}
12... Ng6 {[%clk 0:01:27.8]} 13. a6 {[%clk 0:01:27.2]} 13... b5 {[%clk 0:01:24]}
14. Bf1 {[%clk 0:01:12.5]} 14... Rb8 {[%clk 0:01:22]} 15. b4 {[%clk 0:01:08]}
15... Nh7 {[%clk 0:01:18.4]} 16. d5 {[%clk 0:01:06.2]} 16... Bd7 {[%clk
0:01:17.9]} 17. dxc6 {[%clk 0:01:05.7]} 17... Bxc6 {[%clk 0:01:18.1]} 18. g3
{[%clk 0:00:55.9]} 18... Qc8 {[%clk 0:01:05.4]} 19. Nd5 {[%clk 0:00:42.5]} 19...
Bf8 {[%clk 0:01:01.5]} 20. c4 {[%clk 0:00:35.5]} 20... bxc4 {[%clk 0:00:59.3]}
21. Rc1 {[%clk 0:00:33.2]} 21... Bxd5 {[%clk 0:00:40.5]} 22. Qxd5 {[%clk
0:00:29.8]} 22... Qxa6 {[%clk 0:00:28.4]} 23. Bxc4 {[%clk 0:00:28.8]} 23... Qb7
{[%clk 0:00:27.8]} 24. Ba3 {[%clk 0:00:15.1]} 24... Nf6 {[%clk 0:00:22.7]} 25.
Qd3 {[%clk 0:00:13.9]} 25... Rec8 {[%clk 0:00:18.8]} 26. b5 {[%clk 0:00:13.8]}
26... Qd7 {[%clk 0:00:18.5]} 27. Kg2 {[%clk 0:00:11.5]} 27... Rc7 {[%clk
0:00:16.9]} 28. Rc2 {[%clk 0:00:09]} 28... Rbc8 {[%clk 0:00:16.8]} 29. Rec1
{[%clk 0:00:08.9]} 29... Nh5 {[%clk 0:00:16.4]} 30. Qe3 {[%clk 0:00:08.3]} 30...
Nhf4+ {[%clk 0:00:15.4]} 31. gxf4 {[%clk 0:00:08.2]} 31... Nxf4+ {[%clk
0:00:16.3]} 32. Kf1 {[%clk 0:00:07.4]} 32... Qxh3+ {[%clk 0:00:16.2]} 33. Ke1
{[%clk 0:00:07.5]} 33... Ng2+ {[%clk 0:00:16.7]} 34. Ke2 {[%clk 0:00:07.3]}
34... Nxe3 {[%clk 0:00:17.6]} 35. Kxe3 {[%clk 0:00:07.5]} 35... Qg4 {[%clk
0:00:17.1]} 36. Nd2 {[%clk 0:00:05.3]} 36... Qf4+ {[%clk 0:00:16.9]} 37. Ke2
{[%clk 0:00:05.5]} 37... h5 {[%clk 0:00:16.5]} 38. Nf1 {[%clk 0:00:04.9]} 38...
h4 {[%clk 0:00:15.8]} 39. Ne3 {[%clk 0:00:04.8]} 39... h3 {[%clk 0:00:16]} 40.
f3 {[%clk 0:00:04.8]} 40... Qh2+ {[%clk 0:00:15.8]} 41. Kd3 {[%clk 0:00:04.6]}
41... Qf4 {[%clk 0:00:15.8]} 42. Bb4 {[%clk 0:00:03]} 42... Qxf3 {[%clk
0:00:14.6]} 43. Bd2 {[%clk 0:00:03]} 43... h2 {[%clk 0:00:12.3]} 44. Rf1 {[%clk
0:00:02.4]} 44... Qxf1+ {[%clk 0:00:08.3]} 45. Nxf1 {[%clk 0:00:02.6]} 45...
h1=Q {[%clk 0:00:08.8]} 46. Ne3 {[%clk 0:00:02.9]} 46... Qf3 {[%clk 0:00:08.5]}
47. Rc1 {[%clk 0:00:02.8]} 47... g6 {[%clk 0:00:07.5]} 48. Rg1 {[%clk
0:00:02.4]} 48... Rxc4 {[%clk 0:00:06.6]} 0-1

[Event "Early-Titled-Tuesday-Blitz-January-30-2024"]
[Site "Chess.com"]
[Date "2024.01.30"]
[Round "4"]
[White "Evgeny81"]
[Black "Lady_Nika"]
[Result "0-1"]
[WhiteElo "2731"]
[BlackElo "2568"]
[TimeControl "180+1"]
[EndTime "8:41:40 PST"]
[Termination "Lady_Nika won on time"]

1. e4 {[%clk 0:02:57.4]} 1... e6 {[%clk 0:02:59.6]} 2. d4 {[%clk 0:02:55.9]}
2... d5 {[%clk 0:02:59.8]} 3. Nd2 {[%clk 0:02:56.3]} 3... Nf6 {[%clk 0:02:59.8]}
4. e5 {[%clk 0:02:55.1]} 4... Nfd7 {[%clk 0:03:00]} 5. f4 {[%clk 0:02:55.6]}
5... c5 {[%clk 0:03:00.3]} 6. c3 {[%clk 0:02:56.3]} 6... Nc6 {[%clk 0:03:00.7]}
7. Ndf3 {[%clk 0:02:56.3]} 7... Be7 {[%clk 0:03:01]} 8. h4 {[%clk 0:02:55.9]}
8... a6 {[%clk 0:02:59.7]} 9. Kf2 {[%clk 0:02:54.8]} 9... b5 {[%clk 0:02:59.1]}
10. h5 {[%clk 0:02:52.4]} 10... h6 {[%clk 0:02:58.9]} 11. Ne2 {[%clk 0:02:45.9]}
11... Bb7 {[%clk 0:02:58.8]} 12. g3 {[%clk 0:02:43.9]} 12... Qb6 {[%clk
0:02:58.6]} 13. Bh3 {[%clk 0:02:43.3]} 13... O-O-O {[%clk 0:02:58.2]} 14. Kg2
{[%clk 0:02:40.6]} 14... Kb8 {[%clk 0:02:54.4]} 15. Be3 {[%clk 0:02:40.1]} 15...
c4 {[%clk 0:02:53.7]} 16. Qd2 {[%clk 0:02:32]} 16... Na5 {[%clk 0:02:52.9]} 17.
f5 {[%clk 0:02:29.3]} 17... exf5 {[%clk 0:02:50.3]} 18. Bxf5 {[%clk 0:02:30.2]}
18... Nf8 {[%clk 0:02:45.2]} 19. Nf4 {[%clk 0:02:22.2]} 19... g6 {[%clk
0:02:36.2]} 20. hxg6 {[%clk 0:02:16]} 20... fxg6 {[%clk 0:02:35.5]} 21. Bh3
{[%clk 0:02:15.9]} 21... g5 {[%clk 0:02:35]} 22. Nh5 {[%clk 0:02:10.2]} 22...
Rg8 {[%clk 0:02:33.5]} 23. Nh2 {[%clk 0:01:56.8]} 23... Ng6 {[%clk 0:02:27.2]}
24. Rhf1 {[%clk 0:01:50.8]} 24... Nxe5 {[%clk 0:02:18.8]} 25. Ng4 {[%clk
0:01:35.7]} 25... Nd3 {[%clk 0:02:06.3]} 26. Kh2 {[%clk 0:01:31.4]} 26... Rdf8
{[%clk 0:02:01.1]} 27. b4 {[%clk 0:01:19.8]} 27... Nc6 {[%clk 0:01:57.6]} 28.
Ngf6 {[%clk 0:01:19.3]} 28... Qc7 {[%clk 0:01:24.6]} 29. Nd7+ {[%clk 0:01:07.7]}
29... Ka7 {[%clk 0:01:21.4]} 30. Nxf8 {[%clk 0:01:08.6]} 30... Rxf8 {[%clk
0:01:20.4]} 31. Rxf8 {[%clk 0:01:06.6]} 31... Bxf8 {[%clk 0:01:20.5]} 32. Rf1
{[%clk 0:01:02.1]} 32... Bd6 {[%clk 0:01:20.2]} 33. Bf5 {[%clk 0:00:56.7]} 33...
Qf7 {[%clk 0:01:14.4]} 34. Qe2 {[%clk 0:00:47]} 34... Nf4 {[%clk 0:00:35.9]} 35.
Bxf4 {[%clk 0:00:18.9]} 35... gxf4 {[%clk 0:00:34]} 36. Qg4 {[%clk 0:00:17]}
36... fxg3+ {[%clk 0:00:31.1]} 37. Kg2 {[%clk 0:00:16]} 37... Qe7 {[%clk
0:00:25.6]} 38. Be6 {[%clk 0:00:11.7]} 38... Nd8 {[%clk 0:00:24.7]} 39. Rf6
{[%clk 0:00:07.4]} 39... Bb8 {[%clk 0:00:17.9]} 40. Qg7 {[%clk 0:00:06.2]} 40...
Qe8 {[%clk 0:00:04.4]} 41. Qg6 {[%clk 0:00:02.9]} 41... Qe7 {[%clk 0:00:04.1]}
42. Qxh6 {[%clk 0:00:02.7]} 42... Qd6 {[%clk 0:00:02.9]} 43. Qe3 {[%clk
0:00:01.2]} 43... Qe7 {[%clk 0:00:02.7]} 0-1

[Event "Early-Titled-Tuesday-Blitz-January-30-2024"]
[Site "Chess.com"]
[Date "2024.01.30"]
[Round "4"]
[White "JuniorJumper"]
[Black "Kostukov_Alex"]
[Result "1-0"]
[WhiteElo "2520"]
[BlackElo "2311"]
[TimeControl "180+1"]
[EndTime "8:41:41 PST"]
[Termination "JuniorJumper won by resignation"]

1. b3 {[%clk 0:03:00.9]} 1... Nf6 {[%clk 0:02:58.2]} 2. Bb2 {[%clk 0:03:01.2]}
2... g6 {[%clk 0:02:58.5]} 3. Nf3 {[%clk 0:03:01]} 3... Bg7 {[%clk 0:02:58.4]}
4. g3 {[%clk 0:03:00.3]} 4... O-O {[%clk 0:02:58.6]} 5. Bg2 {[%clk 0:03:00.7]}
5... d5 {[%clk 0:02:58.9]} 6. O-O {[%clk 0:03:00.8]} 6... c5 {[%clk 0:02:59.1]}
7. d3 {[%clk 0:02:57.4]} 7... Nc6 {[%clk 0:02:54.9]} 8. Nbd2 {[%clk 0:02:57.2]}
8... d4 {[%clk 0:02:54.4]} 9. h3 {[%clk 0:02:50.6]} 9... Nd5 {[%clk 0:02:38]}
10. Ne4 {[%clk 0:02:26.7]} 10... b6 {[%clk 0:02:35.3]} 11. a3 {[%clk 0:02:04.2]}
11... h6 {[%clk 0:02:26.4]} 12. Re1 {[%clk 0:01:58.8]} 12... Kh7 {[%clk
0:02:18.1]} 13. Kh2 {[%clk 0:01:55]} 13... f5 {[%clk 0:02:17.4]} 14. Ned2 {[%clk
0:01:54.8]} 14... e5 {[%clk 0:02:16]} 15. e4 {[%clk 0:01:45.1]} 15... dxe3
{[%clk 0:02:10.3]} 16. fxe3 {[%clk 0:01:43.3]} 16... Bb7 {[%clk 0:01:37]} 17. e4
{[%clk 0:01:22.5]} 17... Nde7 {[%clk 0:01:20.1]} 18. Nc4 {[%clk 0:01:14.7]}
18... Nd4 {[%clk 0:00:59]} 19. Bxd4 {[%clk 0:00:35.2]} 19... exd4 {[%clk
0:00:58.6]} 20. e5 {[%clk 0:00:33.7]} 20... Nd5 {[%clk 0:00:49.7]} 21. a4 {[%clk
0:00:27]} 21... Qc7 {[%clk 0:00:39.5]} 22. Qd2 {[%clk 0:00:26.2]} 22... Rae8
{[%clk 0:00:38.6]} 23. Nd6 {[%clk 0:00:25.7]} 23... Re7 {[%clk 0:00:36.1]} 24.
Nxb7 {[%clk 0:00:25.5]} 24... Qxb7 {[%clk 0:00:36.5]} 25. Nh4 {[%clk 0:00:12.8]}
25... Qd7 {[%clk 0:00:33.5]} 26. e6 {[%clk 0:00:10.8]} 26... Qd6 {[%clk
0:00:32.5]} 27. Bxd5 {[%clk 0:00:09.1]} 27... Qxd5 {[%clk 0:00:31.9]} 28. Qg2
{[%clk 0:00:09.4]} 28... Qd6 {[%clk 0:00:29.1]} 29. Re2 {[%clk 0:00:05.5]} 29...
Rxe6 {[%clk 0:00:24.2]} 30. Rae1 {[%clk 0:00:05.9]} 30... Rfe8 {[%clk
0:00:24.1]} 31. Nf3 {[%clk 0:00:04.4]} 31... Re3 {[%clk 0:00:22.9]} 32. Nd2
{[%clk 0:00:03.4]} 32... f4 {[%clk 0:00:22.2]} 33. Nc4 {[%clk 0:00:03.4]} 33...
fxg3+ {[%clk 0:00:21.9]} 34. Kh1 {[%clk 0:00:03.8]} 34... Rxe2 {[%clk
0:00:16.8]} 35. Rxe2 {[%clk 0:00:04.7]} 35... Rxe2 {[%clk 0:00:15.7]} 36. Qxe2
{[%clk 0:00:05.6]} 36... Qd5+ {[%clk 0:00:14.7]} 37. Qg2 {[%clk 0:00:06.2]}
37... Qg5 {[%clk 0:00:14]} 38. Qf3 {[%clk 0:00:05]} 38... h5 {[%clk 0:00:12.7]}
39. Kg2 {[%clk 0:00:04.9]} 39... h4 {[%clk 0:00:13.2]} 40. Qf1 {[%clk
0:00:03.3]} 40... Kh6 {[%clk 0:00:11.7]} 41. Qe1 {[%clk 0:00:03.8]} 41... Be5
{[%clk 0:00:10.7]} 42. Nxe5 {[%clk 0:00:03.5]} 42... a5 {[%clk 0:00:10.1]} 43.
Nf7+ {[%clk 0:00:03.9]} 43... Kh5 {[%clk 0:00:09.4]} 44. Nxg5 {[%clk 0:00:04.8]}
44... Kxg5 {[%clk 0:00:10.3]} 45. Qe7+ {[%clk 0:00:05.1]} 1-0

[Event "Early-Titled-Tuesday-Blitz-January-30-2024"]
[Site "Chess.com"]
[Date "2024.01.30"]
[Round "4"]
[White "MikaelyanArman"]
[Black "GroovyKettle"]
[Result "1/2-1/2"]
[WhiteElo "2837"]
[BlackElo "2983"]
[TimeControl "180+1"]
[EndTime "8:41:42 PST"]
[Termination "Game drawn by repetition"]

1. d4 {[%clk 0:03:00.9]} 1... Nf6 {[%clk 0:02:59.8]} 2. c4 {[%clk 0:03:01.1]}
2... g6 {[%clk 0:02:59.6]} 3. Nc3 {[%clk 0:03:01.2]} 3... Bg7 {[%clk 0:03:00.3]}
4. e4 {[%clk 0:03:00.7]} 4... d6 {[%clk 0:03:01]} 5. f4 {[%clk 0:03:01]} 5...
O-O {[%clk 0:03:00.9]} 6. Nf3 {[%clk 0:03:01.4]} 6... Bg4 {[%clk 0:02:58.5]} 7.
Be2 {[%clk 0:02:57.2]} 7... Nfd7 {[%clk 0:02:44.3]} 8. Be3 {[%clk 0:02:44.7]}
8... e5 {[%clk 0:02:39.1]} 9. fxe5 {[%clk 0:02:39.7]} 9... dxe5 {[%clk
0:02:39.3]} 10. d5 {[%clk 0:02:40.3]} 10... a5 {[%clk 0:02:38.7]} 11. O-O {[%clk
0:02:32.4]} 11... Na6 {[%clk 0:02:38]} 12. Nd2 {[%clk 0:02:25.9]} 12... Bxe2
{[%clk 0:02:37.6]} 13. Qxe2 {[%clk 0:02:26.8]} 13... Nac5 {[%clk 0:02:37.7]} 14.
Kh1 {[%clk 0:02:14.4]} 14... Qe7 {[%clk 0:02:32]} 15. Rae1 {[%clk 0:02:06.7]}
15... a4 {[%clk 0:02:27]} 16. b4 {[%clk 0:01:48.8]} 16... axb3 {[%clk
0:02:26.5]} 17. axb3 {[%clk 0:01:49.7]} 17... c6 {[%clk 0:02:26.6]} 18. b4
{[%clk 0:01:39.2]} 18... Na4 {[%clk 0:02:22.3]} 19. Nxa4 {[%clk 0:01:28.4]}
19... Rxa4 {[%clk 0:02:23.2]} 20. c5 {[%clk 0:01:29]} 20... Rxb4 {[%clk
0:02:20.8]} 21. d6 {[%clk 0:01:28.8]} 21... Qe6 {[%clk 0:02:03.1]} 22. Rb1
{[%clk 0:01:28.6]} 22... Rxb1 {[%clk 0:01:17.3]} 23. Rxb1 {[%clk 0:01:29.5]}
23... Rb8 {[%clk 0:01:16]} 24. Nc4 {[%clk 0:01:22.3]} 24... Ra8 {[%clk
0:01:03.8]} 25. h3 {[%clk 0:01:14.8]} 25... Ra4 {[%clk 0:01:03]} 26. Nd2 {[%clk
0:01:08.1]} 26... Ra7 {[%clk 0:00:53.2]} 27. Qd3 {[%clk 0:01:00.7]} 27... Bf6
{[%clk 0:00:51.9]} 28. Nf3 {[%clk 0:00:54.9]} 28... Bd8 {[%clk 0:00:51.5]} 29.
Kh2 {[%clk 0:00:48.6]} 29... Qa2 {[%clk 0:00:48.8]} 30. Rb3 {[%clk 0:00:30]}
30... Qa5 {[%clk 0:00:38.8]} 31. Qc4 {[%clk 0:00:28.8]} 31... Qa2 {[%clk
0:00:27.4]} 32. Qc3 {[%clk 0:00:19.9]} 32... Qe2 {[%clk 0:00:22.4]} 33. Rb2
{[%clk 0:00:19.7]} 33... Qd1 {[%clk 0:00:15.9]} 34. Rd2 {[%clk 0:00:18.4]} 34...
Qa1 {[%clk 0:00:15]} 35. Qc4 {[%clk 0:00:14.7]} 35... Qa4 {[%clk 0:00:14.1]} 36.
Qd3 {[%clk 0:00:12.5]} 36... f6 {[%clk 0:00:13.7]} 37. Rb2 {[%clk 0:00:11.5]}
37... Kg7 {[%clk 0:00:13.9]} 38. h4 {[%clk 0:00:09.5]} 38... h5 {[%clk
0:00:13.7]} 39. Rb3 {[%clk 0:00:07.8]} 39... Nf8 {[%clk 0:00:13.8]} 40. d7
{[%clk 0:00:07.4]} 40... b5 {[%clk 0:00:11.9]} 41. cxb6 {[%clk 0:00:07.4]} 41...
Rxd7 {[%clk 0:00:12.2]} 42. Qc3 {[%clk 0:00:06.2]} 42... Qxe4 {[%clk 0:00:10.7]}
43. b7 {[%clk 0:00:06.7]} 43... Bc7 {[%clk 0:00:11.1]} 44. b8=Q {[%clk 0:00:06]}
44... Bxb8 {[%clk 0:00:11.8]} 45. Rxb8 {[%clk 0:00:06.2]} 45... Ne6 {[%clk
0:00:12.7]} 46. Rb4 {[%clk 0:00:04.1]} 46... Qd3 {[%clk 0:00:11.9]} 47. Qxc6
{[%clk 0:00:03.8]} 47... Re7 {[%clk 0:00:12.3]} 48. Rb7 {[%clk 0:00:03.8]} 48...
Kf7 {[%clk 0:00:06.7]} 49. Rxe7+ {[%clk 0:00:03.9]} 49... Kxe7 {[%clk
0:00:07.5]} 50. Qb7+ {[%clk 0:00:04.6]} 50... Kf8 {[%clk 0:00:07.6]} 51. Qc8+
{[%clk 0:00:04.8]} 51... Kf7 {[%clk 0:00:07.7]} 52. Qb7+ {[%clk 0:00:05.4]}
52... Kf8 {[%clk 0:00:08.1]} 53. Bh6+ {[%clk 0:00:05.4]} 53... Ke8 {[%clk
0:00:08.3]} 54. Qc8+ {[%clk 0:00:05.3]} 54... Ke7 {[%clk 0:00:08.3]} 55. Qb7+
{[%clk 0:00:05.5]} 55... Ke8 {[%clk 0:00:07.8]} 56. Qc6+ {[%clk 0:00:06.2]}
56... Ke7 {[%clk 0:00:08]} 57. Qb7+ {[%clk 0:00:05.7]} 57... Ke8 {[%clk
0:00:08]} 1/2-1/2

[Event "Early-Titled-Tuesday-Blitz-January-30-2024"]
[Site "Chess.com"]
[Date "2024.01.30"]
[Round "4"]
[White "GiorgianBarbosa"]
[Black "flomarechot"]
[Result "0-1"]
[WhiteElo "2481"]
[BlackElo "2345"]
[TimeControl "180+1"]
[EndTime "8:41:42 PST"]
[Termination "flomarechot won on time"]

1. e4 {[%clk 0:02:59]} 1... d6 {[%clk 0:03:00.1]} 2. d4 {[%clk 0:02:53.1]} 2...
Nf6 {[%clk 0:03:00.3]} 3. Nc3 {[%clk 0:02:51.2]} 3... e5 {[%clk 0:03:00.7]} 4.
Nf3 {[%clk 0:02:50.1]} 4... Nbd7 {[%clk 0:03:00.4]} 5. Bc4 {[%clk 0:02:49]} 5...
Be7 {[%clk 0:03:00.4]} 6. O-O {[%clk 0:02:48]} 6... O-O {[%clk 0:03:00.3]} 7.
Re1 {[%clk 0:02:42.4]} 7... c6 {[%clk 0:03:00.5]} 8. a4 {[%clk 0:02:41.5]} 8...
b6 {[%clk 0:03:00.9]} 9. h3 {[%clk 0:02:32.4]} 9... Bb7 {[%clk 0:03:00.6]} 10.
Bg5 {[%clk 0:02:24]} 10... a6 {[%clk 0:03:00.5]} 11. d5 {[%clk 0:02:05.8]} 11...
cxd5 {[%clk 0:02:57.7]} 12. exd5 {[%clk 0:01:57.3]} 12... Qc7 {[%clk 0:02:21.4]}
13. Bd3 {[%clk 0:01:54]} 13... h6 {[%clk 0:02:17]} 14. Be3 {[%clk 0:01:40.8]}
14... Nc5 {[%clk 0:02:09.5]} 15. Bxc5 {[%clk 0:01:38.9]} 15... bxc5 {[%clk
0:02:06.9]} 16. Bc4 {[%clk 0:01:27.6]} 16... Bc8 {[%clk 0:01:51.7]} 17. Ra3
{[%clk 0:01:22.5]} 17... Nd7 {[%clk 0:01:28.6]} 18. g4 {[%clk 0:01:10.1]} 18...
f5 {[%clk 0:01:20.2]} 19. gxf5 {[%clk 0:01:06.8]} 19... Rxf5 {[%clk 0:01:21.1]}
20. Ne4 {[%clk 0:00:57.8]} 20... Rf4 {[%clk 0:01:06.9]} 21. Bf1 {[%clk
0:00:49.7]} 21... Nf6 {[%clk 0:01:04.1]} 22. Ng3 {[%clk 0:00:47.9]} 22... Rb8
{[%clk 0:00:49.2]} 23. Rb3 {[%clk 0:00:22.2]} 23... Rxa4 {[%clk 0:00:43.9]} 24.
Rxb8 {[%clk 0:00:17.3]} 24... Qxb8 {[%clk 0:00:44.8]} 25. b3 {[%clk 0:00:17.4]}
25... Rb4 {[%clk 0:00:39]} 26. Bc4 {[%clk 0:00:14.7]} 26... Bxh3 {[%clk
0:00:34.8]} 27. Nxe5 {[%clk 0:00:14.5]} 27... dxe5 {[%clk 0:00:21.4]} 28. d6+
{[%clk 0:00:12.6]} 28... Rxc4 {[%clk 0:00:21.7]} 29. bxc4 {[%clk 0:00:10.1]}
29... Bxd6 {[%clk 0:00:20.7]} 30. Kh2 {[%clk 0:00:05.8]} 30... Be6 {[%clk
0:00:19.5]} 31. Qd3 {[%clk 0:00:05.5]} 31... e4 {[%clk 0:00:18.6]} 32. Qe2
{[%clk 0:00:04.4]} 32... Ng4+ {[%clk 0:00:16.9]} 33. Kg2 {[%clk 0:00:03.9]}
33... Bxg3 {[%clk 0:00:12]} 34. fxg3 {[%clk 0:00:04.4]} 34... Bf5 {[%clk
0:00:10.9]} 35. Qd2 {[%clk 0:00:03.3]} 35... Qe5 {[%clk 0:00:10.6]} 36. Qd5+
{[%clk 0:00:03.1]} 36... Qxd5 {[%clk 0:00:10.2]} 37. cxd5 {[%clk 0:00:04]} 37...
Bd7 {[%clk 0:00:07.8]} 38. Ra1 {[%clk 0:00:04.9]} 38... Bb5 {[%clk 0:00:07]} 39.
Ra5 {[%clk 0:00:05.4]} 39... e3 {[%clk 0:00:06.9]} 40. c4 {[%clk 0:00:05.8]}
40... Bxc4 {[%clk 0:00:06.8]} 41. Rxc5 {[%clk 0:00:06.5]} 41... e2 {[%clk
0:00:05.6]} 42. Rc8+ {[%clk 0:00:05.9]} 42... Kh7 {[%clk 0:00:05.6]} 43. Rc7
{[%clk 0:00:06.3]} 43... e1=Q {[%clk 0:00:05.8]} 0-1